{"text_format":"1","workbook":"xlsx","n_sheets":2,"sheets":["出来高調査票","内訳調書"],"not_rendered":{"charts":0,"images":1,"macros":1,"external_links":0,"defined_names":2,"comments":2,"pivot_tables":0},"unopened":[],"bounds":{"document_bytes":16777216,"sheet_cells":100000,"rows_first":2000,"rows_last":500,"rows_between":2000,"halvings":0,"cell_chars":16384,"cell_head_chars":4096},"cells_cut":0,"cells_raw":0,"read":"whole","date_system":"1900"}

{"sheet":"出来高調査票","index":0,"n_rows":23,"n_cols":18,"rows_kept":23,"cut":false,"hidden":false,"merged":[[17,1,19,1],[20,1,22,1],[7,16,8,17],[15,12,15,13],[15,8,15,9],[21,8,21,9],[21,12,21,13],[19,16,19,17],[22,16,22,17],[16,12,16,13],[22,8,22,9],[16,16,16,17],[21,16,21,17],[17,16,17,17],[20,16,20,17],[18,16,18,17],[22,12,22,13],[9,15,9,17],[10,15,10,17],[11,15,11,17],[18,12,18,13],[19,12,19,13],[13,10,13,13],[17,12,17,13],[13,14,13,17],[14,16,14,17],[15,16,15,17],[1,11,1,12],[1,13,1,14],[2,7,2,11],[5,7,5,11],[20,12,20,13],[14,12,14,13],[17,8,17,9],[13,6,13,9],[14,8,14,9],[16,8,16,9],[20,8,20,9],[18,8,18,9],[19,8,19,9],[13,1,13,5],[16,1,16,5],[5,1,5,2],[6,1,6,2],[7,1,7,2],[5,5,5,6],[5,3,5,4],[6,3,6,11],[7,3,7,11]]}
[]
[null,null,null,null,null,null,null,null,null,null,null,null,null,"2018年11月30日",null,"締め",null,"第　   回"]
[null,null,null,null,null,null,null,"出来高調査票"]
[]
[]
[null,"工事番号：",null,null,null,"作業所名："]
[null,"発注工事名称："]
[null,"協力会社名：",null,null,null,null,null,null,null,null,null,null,null,null,null,null,"（単位：円）"]
[]
[null,null,null,null,null,null,null,null,null,null,null,null,"注文金額",null,"（Ａ）"]
[null,null,null,null,null,null,null,null,null,null,null,null,"消費税額（10％）",null,"（Ｂ）",{"$f":"IF(P10=\"\",\"\",P10*0.1)","v":""}]
[null,null,null,null,null,null,null,null,null,null,null,null,"契約金額",null,"（Ｃ＝Ａ＋Ｂ）",{"$f":"IF(P10=\"\",\"\",P10+P11)","v":""}]
[]
[null,"区分",null,null,null,null,"前月迄出来高（支払額）",null,null,null,"当月出来高",null,null,null,"累計出来高"]
[null,"出来高金額",null,null,null,null,"（E）",null,null,null,"（Ｄ）",null,null,null,"（F）",null,{"$f":"IF(M15=\"\",\"\",SUM(I15,M15))","v":""}]
[null,"出来高割合(%)",null,null,null,null,"(E／Ａ×１００）",null,{"$f":"IF(I15=\"\",\"\",I15/P10)","v":""},null,"(Ｄ／Ａ×１００）",null,{"$f":"IF(M15=\"\",\"\",M15/P10)","v":""},null,"(F／Ａ×１００）",null,{"$f":"IF(OR(P10=\"\",Q15=\"\"),\"\",Q15/P10)","v":""}]
[null,"建設工事下請契約約款 第35条の前払金額\n（税抜）",null,null,null,null,"（g）",null,null,null,"（g'）",null,null,null,"（G）",null,{"$f":"IF(AND(I17=\"\",M17=\"\"),\"\",SUM(I17,M17))","v":""}]
[null,null,"差引請求額（税抜）",null,null,null,"（H＝E-ｇ)",null,{"$f":"IF(I15=\"\",\"\",SUM(I15,I17))","v":""},null,"（H＝D-ｇ')",null,{"$f":"IF(M15=\"\",\"\",SUM(M15,M17))","v":""},null,"（H＝F-G)",null,{"$f":"IF(AND(I18=\"\",M18=\"\"),\"\",SUM(I18,M18))","v":""}]
[null,null,"　消費税額（10％）",null,null,null,"（T＝H×0.10）",null,{"$f":"IF(I15=\"\",\"\",I18*0.1)","v":""},null,"（T＝H×0.10）",null,{"$f":"IF(M15=\"\",\"\",M18*0.1)","v":""},null,"（T＝H×0.10）",null,{"$f":"IF(AND(I19=\"\",M19=\"\"),\"\",SUM(I19,M19))","v":""}]
[null,null,"合　　　　計（税込）",null,null,null,"（I＝H＋T）",null,{"$f":"IF(I15=\"\",\"\",SUM(I18,I19))","v":""},null,"（I＝H＋T）",null,{"$f":"IF(M15=\"\",\"\",SUM(M18,M19))","v":""},null,"（I＝H＋T）",null,{"$f":"IF(AND(I20=\"\",M20=\"\"),\"\",SUM(I20,M20))","v":""}]
[null,null,"支払残高（税抜）",null,null,null,"（J＝Ａ－(E-ｇ））",null,{"$f":"IF(I15=\"\",\"\",$P$10-I18)","v":""},null,"（J＝Ａ－(F-ｇ'））",null,{"$f":"IF(M15=\"\",\"\",$P$10-SUM(I18:N18))","v":""},null,"（J＝Ａ－(F-G））",null,{"$f":"IF(OR(P10=\"\",M15=\"\"),\"\",P10-SUM(I18:N18))","v":""}]
[null,null,"　消費税額（10％）",null,null,null,"（T＝J×0.10）",null,{"$f":"IF(I15=\"\",\"\",I21*0.1)","v":""},null,"（T＝J×0.10）",null,{"$f":"IF(M15=\"\",\"\",M21*0.1)","v":""},null,"（T＝J×0.10）",null,{"$f":"IF(M15=\"\",\"\",Q21*0.1)","v":""}]
[null,null,"合　　　　計（税込）",null,null,null,"（K＝J+T)",null,{"$f":"IF(I15=\"\",\"\",I21*1.1)","v":""},null,"（K＝J+T)",null,{"$f":"IF(M15=\"\",\"\",M21*1.1)","v":""},null,"（K＝J+T)",null,{"$f":"IF(Q21=\"\",\"\",Q21*1.1)","v":""}]

{"sheet":"内訳調書","index":1,"n_rows":363,"n_cols":15,"rows_kept":363,"cut":false,"hidden":false,"merged":[[1,9,1,10],[0,0,0,14],[1,6,1,8],[1,13,1,14],[1,11,1,12],[1,0,2,0],[1,1,2,1],[1,3,1,5],[1,2,2,2]]}
["出来高調査票（内訳）"]
["名称","摘要","単位","契約",null,null,"変更",null,null,"当月",null,"当月迄",null,"累計"]
[null,null,null,"数量","単価","金額","数量","単価","金額","数量","金額","数量","金額","数量","金額"]
[null,null,null,null,null,{"$f":"IF(D4=\"\",\"\",D4*E4)","v":""},null,null,{"$f":"IF(G4=\"\",\"\",G4*H4)","v":""},null,{"$f":"IF(J4=\"\",\"\",IF(AND(G4=\"\",H4=\"\"),E4*J4,H4*J4))","v":""}]
[null,null,null,null,null,"",null,null,"",null,{"$f":"IF(J5=\"\",\"\",IF(AND(G5=\"\",H5=\"\"),E5*J5,H5*J5))","v":""}]
[null,null,null,null,null,"",null,null,"",null,{"$f":"IF(J6=\"\",\"\",IF(AND(G6=\"\",H6=\"\"),E6*J6,H6*J6))","v":""}]
[null,null,null,null,null,"",null,null,"",null,""]
[null,null,null,null,null,"",null,null,"",null,""]
[null,null,null,null,null,"",null,null,"",null,""]
[null,null,null,null,null,"",null,null,"",null,""]
[null,null,null,null,null,"",null,null,"",null,""]
[null,null,null,null,null,"",null,null,"",null,""]
[null,null,null,null,null,"",null,null,"",null,""]
[null,null,null,null,null,"",null,null,"",null,""]
[null,null,null,null,null,"",null,null,"",null,""]
[null,null,null,null,null,"",null,null,"",null,""]
[null,null,null,null,null,"",null,null,"",null,""]
[null,null,null,null,null,"",null,null,"",null,""]
[null,null,null,null,null,"",null,null,"",null,""]
[null,null,null,null,null,"",null,null,"",null,""]
[null,null,null,null,null,"",null,null,"",null,""]
[null,null,null,null,null,{"$f":"IF(D22=\"\",\"\",D22*E22)","v":""},null,null,{"$f":"IF(G22=\"\",\"\",G22*H22)","v":""},null,""]
[null,null,null,null,null,"",null,null,"",null,""]
[null,null,null,null,null,"",null,null,"",null,""]
[null,null,null,null,null,"",null,null,"",null,""]
[null,null,null,null,null,"",null,null,"",null,""]
[null,null,null,null,null,"",null,null,"",null,""]
[null,null,null,null,null,"",null,null,"",null,""]
[null,null,null,null,null,"",null,null,"",null,""]
[null,null,null,null,null,"",null,null,"",null,""]
[null,null,null,null,null,"",null,null,"",null,""]
[null,null,null,null,null,"",null,null,"",null,""]
[null,null,null,null,null,"",null,null,"",null,""]
[null,null,null,null,null,"",null,null,"",null,""]
[null,null,null,null,null,"",null,null,"",null,""]
[null,null,null,null,null,"",null,null,"",null,""]
[null,null,null,null,null,"",null,null,"",null,""]
[null,null,null,null,null,"",null,null,"",null,""]
[null,null,null,null,null,"",null,null,"",null,""]
[null,null,null,null,null,"",null,null,"",null,""]
[null,null,null,null,null,"",null,null,"",null,""]
[null,null,null,null,null,"",null,null,"",null,""]
[null,null,null,null,null,"",null,null,"",null,""]
[null,null,null,null,null,"",null,null,"",null,""]
[null,null,null,null,null,"",null,null,"",null,""]
[null,null,null,null,null,"",null,null,"",null,""]
[null,null,null,null,null,"",null,null,"",null,""]
[null,null,null,null,null,"",null,null,"",null,""]
[null,null,null,null,null,"",null,null,"",null,""]
[null,null,null,null,null,"",null,null,"",null,""]
[null,null,null,null,null,"",null,null,"",null,""]
[null,null,null,null,null,"",null,null,"",null,""]
[null,null,null,null,null,"",null,null,"",null,""]
[null,null,null,null,null,"",null,null,"",null,""]
[null,null,null,null,null,"",null,null,"",null,""]
[null,null,null,null,null,"",null,null,"",null,""]
[null,null,null,null,null,"",null,null,"",null,""]
[null,null,null,null,null,"",null,null,"",null,""]
[null,null,null,null,null,"",null,null,"",null,""]
[null,null,null,null,null,"",null,null,"",null,""]
[null,null,null,null,null,"",null,null,"",null,""]
[null,null,null,null,null,"",null,null,"",null,""]
[null,null,null,null,null,"",null,null,"",null,""]
[null,null,null,null,null,"",null,null,"",null,""]
[null,null,null,null,null,"",null,null,"",null,""]
[null,null,null,null,null,"",null,null,"",null,""]
[null,null,null,null,null,"",null,null,"",null,""]
[null,null,null,null,null,"",null,null,"",null,""]
[null,null,null,null,null,"",null,null,"",null,""]
[null,null,null,null,null,"",null,null,"",null,{"$f":"IF(J70=\"\",\"\",IF(AND(G70=\"\",H70=\"\"),E70*J70,H70*J70))","v":""}]
[null,null,null,null,null,"",null,null,"",null,""]
[null,null,null,null,null,"",null,null,"",null,""]
[null,null,null,null,null,"",null,null,"",null,""]
[null,null,null,null,null,"",null,null,"",null,""]
[null,null,null,null,null,"",null,null,"",null,""]
[null,null,null,null,null,"",null,null,"",null,""]
[null,null,null,null,null,"",null,null,"",null,""]
[null,null,null,null,null,"",null,null,"",null,""]
[null,null,null,null,null,"",null,null,"",null,""]
[null,null,null,null,null,"",null,null,"",null,""]
[null,null,null,null,null,"",null,null,"",null,""]
[null,null,null,null,null,"",null,null,"",null,""]
[null,null,null,null,null,"",null,null,"",null,""]
[null,null,null,null,null,"",null,null,"",null,""]
[null,null,null,null,null,"",null,null,"",null,""]
[null,null,null,null,null,{"$f":"IF(D86=\"\",\"\",D86*E86)","v":""},null,null,{"$f":"IF(G86=\"\",\"\",G86*H86)","v":""},null,""]
[null,null,null,null,null,"",null,null,"",null,""]
[null,null,null,null,null,"",null,null,"",null,""]
[null,null,null,null,null,"",null,null,"",null,""]
[null,null,null,null,null,"",null,null,"",null,""]
[null,null,null,null,null,"",null,null,"",null,""]
[null,null,null,null,null,"",null,null,"",null,""]
[null,null,null,null,null,"",null,null,"",null,""]
[null,null,null,null,null,"",null,null,"",null,""]
[null,null,null,null,null,"",null,null,"",null,""]
[null,null,null,null,null,"",null,null,"",null,""]
[null,null,null,null,null,"",null,null,"",null,""]
[null,null,null,null,null,"",null,null,"",null,""]
[null,null,null,null,null,"",null,null,"",null,""]
[null,null,null,null,null,"",null,null,"",null,""]
[null,null,null,null,null,"",null,null,"",null,""]
[null,null,null,null,null,"",null,null,"",null,""]
[null,null,null,null,null,"",null,null,"",null,""]
[null,null,null,null,null,"",null,null,"",null,""]
[null,null,null,null,null,"",null,null,"",null,""]
[null,null,null,null,null,"",null,null,"",null,""]
[null,null,null,null,null,"",null,null,"",null,""]
[null,null,null,null,null,"",null,null,"",null,""]
[null,null,null,null,null,"",null,null,"",null,""]
[null,null,null,null,null,"",null,null,"",null,""]
[null,null,null,null,null,"",null,null,"",null,""]
[null,null,null,null,null,"",null,null,"",null,""]
[null,null,null,null,null,"",null,null,"",null,""]
[null,null,null,null,null,"",null,null,"",null,""]
[null,null,null,null,null,"",null,null,"",null,""]
[null,null,null,null,null,"",null,null,"",null,""]
[null,null,null,null,null,"",null,null,"",null,""]
[null,null,null,null,null,"",null,null,"",null,""]
[null,null,null,null,null,"",null,null,"",null,""]
[null,null,null,null,null,"",null,null,"",null,""]
[null,null,null,null,null,"",null,null,"",null,""]
[null,null,null,null,null,"",null,null,"",null,""]
[null,null,null,null,null,"",null,null,"",null,""]
[null,null,null,null,null,"",null,null,"",null,""]
[null,null,null,null,null,"",null,null,"",null,""]
[null,null,null,null,null,"",null,null,"",null,""]
[null,null,null,null,null,"",null,null,"",null,""]
[null,null,null,null,null,"",null,null,"",null,""]
[null,null,null,null,null,"",null,null,"",null,""]
[null,null,null,null,null,"",null,null,"",null,""]
[null,null,null,null,null,"",null,null,"",null,""]
[null,null,null,null,null,"",null,null,"",null,""]
[null,null,null,null,null,"",null,null,"",null,""]
[null,null,null,null,null,"",null,null,"",null,{"$f":"IF(J134=\"\",\"\",IF(AND(G134=\"\",H134=\"\"),E134*J134,H134*J134))","v":""}]
[null,null,null,null,null,"",null,null,"",null,""]
[null,null,null,null,null,"",null,null,"",null,""]
[null,null,null,null,null,"",null,null,"",null,""]
[null,null,null,null,null,"",null,null,"",null,""]
[null,null,null,null,null,"",null,null,"",null,""]
[null,null,null,null,null,"",null,null,"",null,""]
[null,null,null,null,null,"",null,null,"",null,""]
[null,null,null,null,null,"",null,null,"",null,""]
[null,null,null,null,null,"",null,null,"",null,""]
[null,null,null,null,null,"",null,null,"",null,""]
[null,null,null,null,null,"",null,null,"",null,""]
[null,null,null,null,null,"",null,null,"",null,""]
[null,null,null,null,null,"",null,null,"",null,""]
[null,null,null,null,null,"",null,null,"",null,""]
[null,null,null,null,null,"",null,null,"",null,""]
[null,null,null,null,null,{"$f":"IF(D150=\"\",\"\",D150*E150)","v":""},null,null,{"$f":"IF(G150=\"\",\"\",G150*H150)","v":""},null,""]
[null,null,null,null,null,"",null,null,"",null,""]
[null,null,null,null,null,"",null,null,"",null,""]
[null,null,null,null,null,"",null,null,"",null,""]
[null,null,null,null,null,"",null,null,"",null,""]
[null,null,null,null,null,"",null,null,"",null,""]
[null,null,null,null,null,"",null,null,"",null,""]
[null,null,null,null,null,"",null,null,"",null,""]
[null,null,null,null,null,"",null,null,"",null,""]
[null,null,null,null,null,"",null,null,"",null,""]
[null,null,null,null,null,"",null,null,"",null,""]
[null,null,null,null,null,"",null,null,"",null,""]
[null,null,null,null,null,"",null,null,"",null,""]
[null,null,null,null,null,"",null,null,"",null,""]
[null,null,null,null,null,"",null,null,"",null,""]
[null,null,null,null,null,"",null,null,"",null,""]
[null,null,null,null,null,"",null,null,"",null,""]
[null,null,null,null,null,"",null,null,"",null,""]
[null,null,null,null,null,"",null,null,"",null,""]
[null,null,null,null,null,"",null,null,"",null,""]
[null,null,null,null,null,"",null,null,"",null,""]
[null,null,null,null,null,"",null,null,"",null,""]
[null,null,null,null,null,"",null,null,"",null,""]
[null,null,null,null,null,"",null,null,"",null,""]
[null,null,null,null,null,"",null,null,"",null,""]
[null,null,null,null,null,"",null,null,"",null,""]
[null,null,null,null,null,"",null,null,"",null,""]
[null,null,null,null,null,"",null,null,"",null,""]
[null,null,null,null,null,"",null,null,"",null,""]
[null,null,null,null,null,"",null,null,"",null,""]
[null,null,null,null,null,"",null,null,"",null,""]
[null,null,null,null,null,"",null,null,"",null,""]
[null,null,null,null,null,"",null,null,"",null,""]
[null,null,null,null,null,"",null,null,"",null,""]
[null,null,null,null,null,"",null,null,"",null,""]
[null,null,null,null,null,"",null,null,"",null,""]
[null,null,null,null,null,"",null,null,"",null,""]
[null,null,null,null,null,"",null,null,"",null,""]
[null,null,null,null,null,"",null,null,"",null,""]
[null,null,null,null,null,"",null,null,"",null,""]
[null,null,null,null,null,"",null,null,"",null,""]
[null,null,null,null,null,"",null,null,"",null,""]
[null,null,null,null,null,"",null,null,"",null,""]
[null,null,null,null,null,"",null,null,"",null,""]
[null,null,null,null,null,"",null,null,"",null,""]
[null,null,null,null,null,"",null,null,"",null,""]
[null,null,null,null,null,"",null,null,"",null,""]
[null,null,null,null,null,"",null,null,"",null,""]
[null,null,null,null,null,"",null,null,"",null,{"$f":"IF(J198=\"\",\"\",IF(AND(G198=\"\",H198=\"\"),E198*J198,H198*J198))","v":""}]
[null,null,null,null,null,"",null,null,"",null,""]
[null,null,null,null,null,"",null,null,"",null,""]
[null,null,null,null,null,"",null,null,"",null,""]
[null,null,null,null,null,"",null,null,"",null,""]
[null,null,null,null,null,"",null,null,"",null,""]
[null,null,null,null,null,"",null,null,"",null,""]
[null,null,null,null,null,"",null,null,"",null,""]
[null,null,null,null,null,"",null,null,"",null,""]
[null,null,null,null,null,"",null,null,"",null,""]
[null,null,null,null,null,"",null,null,"",null,""]
[null,null,null,null,null,"",null,null,"",null,""]
[null,null,null,null,null,"",null,null,"",null,""]
[null,null,null,null,null,"",null,null,"",null,""]
[null,null,null,null,null,"",null,null,"",null,""]
[null,null,null,null,null,"",null,null,"",null,""]
[null,null,null,null,null,{"$f":"IF(D214=\"\",\"\",D214*E214)","v":""},null,null,{"$f":"IF(G214=\"\",\"\",G214*H214)","v":""},null,""]
[null,null,null,null,null,"",null,null,"",null,""]
[null,null,null,null,null,"",null,null,"",null,""]
[null,null,null,null,null,"",null,null,"",null,""]
[null,null,null,null,null,"",null,null,"",null,""]
[null,null,null,null,null,"",null,null,"",null,""]
[null,null,null,null,null,"",null,null,"",null,""]
[null,null,null,null,null,"",null,null,"",null,""]
[null,null,null,null,null,"",null,null,"",null,""]
[null,null,null,null,null,"",null,null,"",null,""]
[null,null,null,null,null,"",null,null,"",null,""]
[null,null,null,null,null,"",null,null,"",null,""]
[null,null,null,null,null,"",null,null,"",null,""]
[null,null,null,null,null,"",null,null,"",null,""]
[null,null,null,null,null,"",null,null,"",null,""]
[null,null,null,null,null,"",null,null,"",null,""]
[null,null,null,null,null,"",null,null,"",null,""]
[null,null,null,null,null,"",null,null,"",null,""]
[null,null,null,null,null,"",null,null,"",null,""]
[null,null,null,null,null,"",null,null,"",null,""]
[null,null,null,null,null,"",null,null,"",null,""]
[null,null,null,null,null,"",null,null,"",null,""]
[null,null,null,null,null,"",null,null,"",null,""]
[null,null,null,null,null,"",null,null,"",null,""]
[null,null,null,null,null,"",null,null,"",null,""]
[null,null,null,null,null,"",null,null,"",null,""]
[null,null,null,null,null,"",null,null,"",null,""]
[null,null,null,null,null,"",null,null,"",null,""]
[null,null,null,null,null,"",null,null,"",null,""]
[null,null,null,null,null,"",null,null,"",null,""]
[null,null,null,null,null,"",null,null,"",null,""]
[null,null,null,null,null,"",null,null,"",null,""]
[null,null,null,null,null,"",null,null,"",null,""]
[null,null,null,null,null,"",null,null,"",null,""]
[null,null,null,null,null,"",null,null,"",null,""]
[null,null,null,null,null,"",null,null,"",null,""]
[null,null,null,null,null,"",null,null,"",null,""]
[null,null,null,null,null,"",null,null,"",null,""]
[null,null,null,null,null,"",null,null,"",null,""]
[null,null,null,null,null,"",null,null,"",null,""]
[null,null,null,null,null,"",null,null,"",null,""]
[null,null,null,null,null,"",null,null,"",null,""]
[null,null,null,null,null,"",null,null,"",null,""]
[null,null,null,null,null,"",null,null,"",null,""]
[null,null,null,null,null,"",null,null,"",null,""]
[null,null,null,null,null,"",null,null,"",null,""]
[null,null,null,null,null,"",null,null,"",null,""]
[null,null,null,null,null,"",null,null,"",null,""]
[null,null,null,null,null,"",null,null,"",null,{"$f":"IF(J262=\"\",\"\",IF(AND(G262=\"\",H262=\"\"),E262*J262,H262*J262))","v":""}]
[null,null,null,null,null,"",null,null,"",null,""]
[null,null,null,null,null,"",null,null,"",null,""]
[null,null,null,null,null,"",null,null,"",null,""]
[null,null,null,null,null,"",null,null,"",null,""]
[null,null,null,null,null,"",null,null,"",null,""]
[null,null,null,null,null,"",null,null,"",null,""]
[null,null,null,null,null,"",null,null,"",null,""]
[null,null,null,null,null,"",null,null,"",null,""]
[null,null,null,null,null,"",null,null,"",null,""]
[null,null,null,null,null,"",null,null,"",null,""]
[null,null,null,null,null,"",null,null,"",null,""]
[null,null,null,null,null,"",null,null,"",null,""]
[null,null,null,null,null,"",null,null,"",null,""]
[null,null,null,null,null,"",null,null,"",null,""]
[null,null,null,null,null,"",null,null,"",null,""]
[null,null,null,null,null,{"$f":"IF(D278=\"\",\"\",D278*E278)","v":""},null,null,{"$f":"IF(G278=\"\",\"\",G278*H278)","v":""},null,""]
[null,null,null,null,null,"",null,null,"",null,""]
[null,null,null,null,null,"",null,null,"",null,""]
[null,null,null,null,null,"",null,null,"",null,""]
[null,null,null,null,null,"",null,null,"",null,""]
[null,null,null,null,null,"",null,null,"",null,""]
[null,null,null,null,null,"",null,null,"",null,""]
[null,null,null,null,null,"",null,null,"",null,""]
[null,null,null,null,null,"",null,null,"",null,""]
[null,null,null,null,null,"",null,null,"",null,""]
[null,null,null,null,null,"",null,null,"",null,""]
[null,null,null,null,null,"",null,null,"",null,""]
[null,null,null,null,null,"",null,null,"",null,""]
[null,null,null,null,null,"",null,null,"",null,""]
[null,null,null,null,null,"",null,null,"",null,""]
[null,null,null,null,null,"",null,null,"",null,""]
[null,null,null,null,null,"",null,null,"",null,""]
[null,null,null,null,null,"",null,null,"",null,""]
[null,null,null,null,null,"",null,null,"",null,""]
[null,null,null,null,null,"",null,null,"",null,""]
[null,null,null,null,null,"",null,null,"",null,""]
[null,null,null,null,null,"",null,null,"",null,""]
[null,null,null,null,null,"",null,null,"",null,""]
[null,null,null,null,null,"",null,null,"",null,""]
[null,null,null,null,null,"",null,null,"",null,""]
[null,null,null,null,null,"",null,null,"",null,""]
[null,null,null,null,null,"",null,null,"",null,""]
[null,null,null,null,null,"",null,null,"",null,""]
[null,null,null,null,null,"",null,null,"",null,""]
[null,null,null,null,null,"",null,null,"",null,""]
[null,null,null,null,null,"",null,null,"",null,""]
[null,null,null,null,null,"",null,null,"",null,""]
[null,null,null,null,null,"",null,null,"",null,""]
[null,null,null,null,null,"",null,null,"",null,""]
[null,null,null,null,null,"",null,null,"",null,""]
[null,null,null,null,null,"",null,null,"",null,""]
[null,null,null,null,null,"",null,null,"",null,""]
[null,null,null,null,null,"",null,null,"",null,""]
[null,null,null,null,null,"",null,null,"",null,""]
[null,null,null,null,null,"",null,null,"",null,""]
[null,null,null,null,null,"",null,null,"",null,""]
[null,null,null,null,null,"",null,null,"",null,""]
[null,null,null,null,null,"",null,null,"",null,""]
[null,null,null,null,null,"",null,null,"",null,""]
[null,null,null,null,null,"",null,null,"",null,""]
[null,null,null,null,null,"",null,null,"",null,""]
[null,null,null,null,null,"",null,null,"",null,""]
[null,null,null,null,null,"",null,null,"",null,""]
[null,null,null,null,null,"",null,null,"",null,{"$f":"IF(J326=\"\",\"\",IF(AND(G326=\"\",H326=\"\"),E326*J326,H326*J326))","v":""}]
[null,null,null,null,null,"",null,null,"",null,""]
[null,null,null,null,null,"",null,null,"",null,""]
[null,null,null,null,null,"",null,null,"",null,""]
[null,null,null,null,null,"",null,null,"",null,""]
[null,null,null,null,null,"",null,null,"",null,""]
[null,null,null,null,null,"",null,null,"",null,""]
[null,null,null,null,null,"",null,null,"",null,""]
[null,null,null,null,null,"",null,null,"",null,""]
[null,null,null,null,null,"",null,null,"",null,""]
[null,null,null,null,null,"",null,null,"",null,""]
[null,null,null,null,null,"",null,null,"",null,""]
[null,null,null,null,null,"",null,null,"",null,""]
[null,null,null,null,null,"",null,null,"",null,""]
[null,null,null,null,null,"",null,null,"",null,""]
[null,null,null,null,null,"",null,null,"",null,""]
[null,null,null,null,null,{"$f":"IF(D342=\"\",\"\",D342*E342)","v":""},null,null,{"$f":"IF(G342=\"\",\"\",G342*H342)","v":""},null,""]
[null,null,null,null,null,"",null,null,"",null,""]
[null,null,null,null,null,"",null,null,"",null,""]
[null,null,null,null,null,"",null,null,"",null,""]
[null,null,null,null,null,"",null,null,"",null,""]
[null,null,null,null,null,"",null,null,"",null,""]
[null,null,null,null,null,"",null,null,"",null,""]
[null,null,null,null,null,"",null,null,"",null,""]
[null,null,null,null,null,"",null,null,"",null,""]
[null,null,null,null,null,"",null,null,"",null,""]
[null,null,null,null,null,"",null,null,"",null,""]
[null,null,null,null,null,"",null,null,"",null,""]
[null,null,null,null,null,"",null,null,"",null,""]
[null,null,null,null,null,"",null,null,"",null,""]
[null,null,null,null,null,"",null,null,"",null,""]
[null,null,null,null,null,"",null,null,"",null,""]
[null,null,null,null,null,"",null,null,"",null,""]
[null,null,null,null,null,"",null,null,"",null,""]
[null,null,null,null,null,"",null,null,"",null,""]
[null,null,null,null,null,"",null,null,"",null,""]
[null,null,null,null,null,"",null,null,"",null,""]
[null,null,null,null,null,"",null,null,"",null,""]